Cogmind - Beta 10.2 @@@ ROGUE MODE // 2021.07.16 @ 14:21:01 Player: ILikeVoltron Result: Smashed by cave-in Performance ------------- Evolutions (1) 500 Regions Visited (2) 400 Robots Destroyed (1) 5 Value Destroyed (6) 6 Prototype IDs (0) 0 Alien Tech Used (0) 0 Bonus (0) 0 TOTAL SCORE: 911 Bonus ------- None Cogmind --------- Core Integrity 0/400 Matter 141/300 Energy 100/100 System Corruption 18% Temperature Cool (0) Movement Core (100) Ox1 Location -9/Materials Parts ------- > --- POWER (1) -------- (None) > --- PROPULSION (2) --- (None) > --- UTILITY (4) ------ Small Storage Unit > --- WEAPON (2) ------- (None) > --- INVENTORY (6) ---- Compact Wheel Armored Wheel Airjet Airjet EM Pulse Cannon Light Assault Rifle Peak State ------------ > --- POWER ------------ Ion Engine > --- PROPULSION ------- Airjet Airjet > --- UTILITY ---------- Cryofiber Web Cryofiber Web Small Storage Unit Small Storage Unit > --- WEAPON ----------- EM Pulse Cannon Mining Laser > --- INVENTORY -------- Light Ion Engine Light Treads Light Treads Wheel Compact Wheel Compact Wheel EM Pulse Cannon Light Assault Rifle [Rating: 20] Favorites ----------- Power Ion Engine Engine Ion Engine Propulsion Airjet Leg Aluminum Leg Hover Unit Airjet Utility Small Storage Unit Device Cryofiber Web Storage Small Storage Unit Weapon Mining Laser Energy Gun Small Laser Energy Cannon EM Pulse Cannon Ballistic Gun Light Assault Rifle Special Weapon Mining Laser Build | -11 -10 -9 ------- Run | Scr Mat Mat Slots Evolved 2 | . . 2 Power . | . . . Propulsion . | . . . Utility 2 | . . 2 Weapon . | . . . Parts Attached 7 | 1 1 5 Power . | . . . Engine . | . . . Core . | . . . Reactor . | . . . Propulsion 2 | . . 2 Treads . | . . . Leg . | . . . Wheel . | . . . Hover 2 | . . 2 Flight . | . . . Utility 3 | 1 . 2 Device 2 | . . 2 Storage 1 | 1 . . Processor . | . . . Hackware . | . . . Protection . | . . . Artifact . | . . . Weapon 2 | . 1 1 Energy Gun . | . . . Energy Cannon 1 | . . 1 Ballistic Gun . | . . . Ballistic Cannon . | . . . Launcher . | . . . Special Weapon 1 | . 1 . Impact Weapon . | . . . Slashing Weapon . | . . . Piercing Weapon . | . . . Special Melee Weapon . | . . . Unidentified Prototypes . | . . . Parts Lost 9 | . . 9 Power 1 | . . 1 Propulsion 2 | . . 2 Utility 3 | . . 3 Weapon 3 | . . 3 Highest Loss Streak 6 | . . 6 Average Slot Usage (%) 41 | . 100 35 Engine 4 | . 14 3 Leg 3 | . 28 1 Hover 3 | . . 4 Device 3 | . . 3 Storage 18 | . 28 17 Energy Gun 1 | . 14 . Energy Cannon 1 | . . 1 Special Weapon 2 | . 3 2 Naked Turns . | . . . Heaviest Build 22 | 15 15 22 Greatest Support 20 | 20 20 20 Greatest Overweight (x) 2 | . . 2 Average Overweight (x) . | . . . Largest Inventory Capacity 8 | 8 8 8 Average Capacity 7 | 6 8 7 Most Carried 8 | 7 8 8 Average Carried 7 | 6 7 7 Final Capacity 8 | 8 8 6 Final Carried 8 | 7 8 6 Class Distribution -------------------- 100% | Mutant Dominant Class ---------------- Mutant | -10/Materials Mutant | -9/Materials Resources | -11 -10 -9 ----------- Run | Scr Mat Mat Matter Collected 214 | 214 . . Remotely . | . . . Salvage Created 92 | 92 . . Parts 3 | 3 . . Haulers Intercepted . | . . . Recyclers Shooed . | . . . Parts Field Recycled . | . . . Retrieved Matter . | . . . Parts Self-Destructed . | . . . Prevented . | . . . Kills | -11 -10 -9 ------- Run | Scr Mat Mat Combat Hostiles Destroyed . | . . . Classes Destroyed 1 | 1 . . Recycler 1 | 1 . . Best Kill Streak 1 | 1 . . Combat Bots Only . | . . . Max Kills in Single Turn 1 | 1 . . Gunslinging . | . . . Exploded . | . . . Melee . | . . . Uniques/NPCs Destroyed . | . . . Combat | -11 -10 -9 -------- Run | Scr Mat Mat Damage Taken 1137 | . . 1137 Core 404 | . . 404 Absorbed by Shields . | . . . Core Remaining (%) 100 | 100 100 . Volleys Fired 22 | 4 6 12 Largest 2 | 2 1 1 Hottest 100 | 60 100 100 Shots Fired 26 | 8 6 12 Gun 9 | 8 1 . Cannon . | . . . Launcher . | . . . Special 17 | . 5 12 Kinetic 5 | 4 1 . Thermal 21 | 4 5 12 Explosive . | . . . Electromagnetic . | . . . Robot Hit Streak 6 | 4 5 6 Robot Miss Streak 1 | 1 . . Penetration Max . | . . . Secondary Targets . | . . . Shots Hit Robots 8 | 6 1 1 Core Hits 2 | 2 . . Critical Hits . | . . . Critical Kills . | . . . Critical Parts Destroyed . | . . . Melee Attacks . | . . . Impact . | . . . Slashing . | . . . Piercing . | . . . Sneak Attacks . | . . . Combat Hostiles . | . . . Follow-up Attacks . | . . . Damage Inflicted 95 | 61 10 24 Guns 71 | 61 10 . Cannons . | . . . Explosions . | . . . Melee . | . . . Ramming . | . . . Kinetic 37 | 27 10 . Thermal 58 | 34 . 24 Explosive . | . . . Electromagnetic . | . . . Impact . | . . . Slashing . | . . . Piercing . | . . . Highest Corruption 18 | . . 18 Average Corruption 17 | . . 17 Corruption Purged . | . . . Effects 44 | . . 44 Message Errors 13 | . . 13 Matter Fused 18 | . . 18 Heat Flow Errors 9 | . . 9 Energy Discharges 1 | . . 1 Data Loss (minor) 3 | . . 3 Overload Shots . | . . . Overflow Damage . | . . . Projectiles . | . . . Explosions . | . . . Melee . | . . . Knockbacks . | . . . Impact . | . . . Kinetic . | . . . Secondary . | . . . Self-Inflicted Damage . | . . . Shots . | . . . Rammed . | . . . Targets Rammed . | . . . Kicked . | . . . Crushed . | . . . Highest Temperature 247 | 20 80 247 Average Temperature 68 | 15 34 86 Received Heat Transfer 36 | . . 36 Effects 1 | . . 1 Energy Bleed 1 | . . 1 Siege Activations . | . . . Robots Corrupted . | . . . Combat Hostiles . | . . . Parts Fried . | . . . Impact Corruptions . | . . . Robots Melted . | . . . Combat Hostiles . | . . . Parts Melted . | . . . Heat Transferred 125 | 75 . 50 Parts Sabotaged . | . . . Parts Stolen . | . . . Parts Stripped . | . . . Power Chain Reactions . | . . . Missiles Intercepted . | . . . Alert | -11 -10 -9 ------- Run | Scr Mat Mat Peak Influence 30 | 5 3 30 Initial 3 | . 3 . Average 3 | 3 3 3 Maximum Alert Level . | . . . Low Security (%) 100 | 100 100 100 Level 1 . | . . . Level 2 . | . . . Level 3 . | . . . Level 4 . | . . . Level 5 . | . . . High Security . | . . . Max Security . | . . . Squads Dispatched . | . . . Investigation . | . . . Extermination . | . . . Reinforcement . | . . . Assault . | . . . Garrison . | . . . Intercept . | . . . Construction Impeded . | . . . Haulers Reinforced . | . . . Stealth | -11 -10 -9 --------- Run | Scr Mat Mat Distress Signals . | . . . Communications Jammed . | . . . Distress Signals . | . . . Times Spotted 1 | . . 1 Peak Tracking Total 1 | . . 1 Tactical Retreats 1 | . . 1 Traps | -11 -10 -9 ------- Run | Scr Mat Mat Traps Triggered . | . . . Indirectly . | . . . Trap Hack Attempts . | . . . Triggered . | . . . Disarmed . | . . . Reprogrammed . | . . . Reused . | . . . Traps Extracted . | . . . Installed . | . . . Triggered . | . . . Machines | -11 -10 -9 ---------- Run | Scr Mat Mat Machines Disabled . | . . . Max in Single Turn . | . . . Machines Sabotaged . | . . . Garrisons Compromised . | . . . Overloaded Fab Kills . | . . . Fab Network Shutdowns . | . . . Hacking | -11 -10 -9 --------- Run | Scr Mat Mat Machines Accessed 6 | . 1 5 Terminals 4 | . 1 3 Fabricators . | . . . Repair Stations . | . . . Recycling Units 1 | . . 1 Scanalyzers 1 | . . 1 Garrison Access . | . . . Total Hacks 19 | . 2 17 Successful 17 | . 2 15 Failed 2 | . . 2 Catastrophic . | . . . Database Lockouts . | . . . Manual 9 | . 2 7 Terminals 12 | . 2 10 Fabricators . | . . . Repair Stations . | . . . Recycling Units 1 | . . 1 Scanalyzers 6 | . . 6 Garrison Access . | . . . Terminal Hacks 3 | . . 3 Emergency Access Points 1 | . . 1 Reinforcement Status 1 | . . 1 Hauler Manifests 1 | . . 1 Fabricator Hacks . | . . . Repair Station Hacks . | . . . Recycling Unit Hacks . | . . . Scanalyzer 6 | . . 6 Insert Component 3 | . . 3 Analyze 3 | . . 3 Garrison Access Hacks . | . . . Unauthorized Hacks 8 | . 2 6 Terminals 7 | . 2 5 Track 3 | . 1 2 Assimilate 2 | . . 2 Botnet 2 | . 1 1 Fabricators . | . . . Repair Stations . | . . . Recycling Units 1 | . . 1 Recyclers 1 | . . 1 Scanalyzers . | . . . Garrison Access . | . . . Data Cores Recovered . | . . . Used . | . . . Hacking Detections 3 | . 1 2 Full Trace Events . | . . . Feedback Events . | . . . Feedback Blocked . | . . . Robot Schematics Acquired . | . . . Robots Built . | . . . Matter . | . . . Time . | . . . Total Robot Build Rating . | . . . Part Schematics Acquired 3 | . . 3 Parts Built . | . . . Matter . | . . . Time . | . . . Total Part Build Rating . | . . . Parts Repaired . | . . . Time . | . . . Parts Recycled . | . . . Recycled Matter . | . . . Retrieved Matter . | . . . Retrieved Components . | . . . Parts Scanalyzed 3 | . . 3 Part Schematics Acquired 3 | . . 3 Parts Damaged . | . . . Bothacking | -11 -10 -9 ------------ Run | Scr Mat Mat Used RIF Installer . | . . . Robots Hacked . | . . . Non-combat . | . . . Combat . | . . . Robot Hacks Applied . | . . . Relay Couplers Released . | . . . Robots Rewired . | . . . Allies Hacked . | . . . Hacks Repelled . | . . . Allies | -11 -10 -9 -------- Run | Scr Mat Mat Total Allies . | . . . Largest Group . | . . . Highest-Rated Group . | . . . Highest-Rated Ally . | . . . Total Orders . | . . . Ally Attacks . | . . . Total Damage . | . . . Kills . | . . . Allies Corrupted . | . . . Allies Melted . | . . . Intel | -11 -10 -9 ------- Run | Scr Mat Mat Robot Analysis Total . | . . . Derelict Logs Recovered . | . . . Drone Launches . | . . . Drone Recoveries . | . . . Exploration | -11 -10 -9 ------------- Run | Scr Mat Mat Turns Passed 1629 | 30 146 1453 Spaces Moved 330 | 14 97 219 Core . | . . . Treads . | . . . Legs 163 | 14 97 52 Wheels . | . . . Hover 167 | . . 167 Flight . | . . . Fastest Speed 116 | 120 120 116 Average Speed 118 | 120 120 117 Slowest Speed 180 | 120 120 180 Overloaded Moves . | . . . Propulsion Burnouts . | . . . Robots Hopped . | . . . Cave-ins Triggered 12 | . . 12 Exploration Rate (%) 14 | 2 27 15 Regions Visited 2 Branch Regions . Pre-discovered Areas . | . . . Known Exits Taken . | . . . Unknown Exits Taken 2 | 1 1 . Scrap Searched . | . . . Spaces Dug 16 | . 5 11 Terrain Destroyed 16 | . 5 11 Melee . | . . . Projectile 16 | . 5 11 AOE . | . . . Terrain Rammed . | . . . Walls Destroyed . | . . . Machines Disabled . | . . . Actions | -11 -10 -9 --------- Run | Scr Mat Mat Total 1509 | 19 110 1380 Wait 1137 | . 6 1131 Move 327 | 13 96 218 Hop . | . . . Pick Up 7 | 1 1 5 Fast Attach 6 | 1 . 5 Attach . | . . . Detach . | . . . Swap 1 | . 1 . Drop 8 | . . 8 Fire 22 | 4 6 12 Melee . | . . . Ram . | . . . Kick . | . . . Crush . | . . . Escape Stasis 1 | . . 1 Rewire . | . . . Trap . | . . . Miscellaneous . | . . . Route ------- -11/Scrapyard -10/Materials -9/Materials (discovered 1 exit: [*Mat]) History --------- Turn | Location | Event 13 | -11/Scrapyard | Discovered new exit (range 2) 31 | -11/Scrapyard | Entered Materials 124 | -10/Materials | Discovered new exit (range 16) 177 | -10/Materials | Entered another Materials area 177 | -9/Materials | Evolved 2 slots: Utility x2 301 | -9/Materials | Build established: Mutant 438 | -9/Materials | Discovered new exit (range 10) 509 | -9/Materials | Crushed by falling debris 510 | -9/Materials | System corruption reached 10% 540 | -9/Materials | Crushed by falling debris 557 | -9/Materials | Crushed by falling debris 559 | -9/Materials | Crushed by falling debris 586 | -9/Materials | Crushed by falling debris 590 | -9/Materials | Lost 6 parts (2n2u2w) 611 | -9/Materials | Crushed by falling debris 824 | -9/Materials | Crushed by falling debris 963 | -9/Materials | Crushed by falling debris 963 | -9/Materials | Core integrity fell below 50% 1084 | -9/Materials | Crushed by falling debris 1101 | -9/Materials | Crushed by falling debris 1175 | -9/Materials | Crushed by falling debris 1175 | -9/Materials | Core integrity fell below 20% 1631 | -9/Materials | Crushed by falling debris 1631 | -9/Materials | Smashed by cave-in Last Messages --------------- 01181_ Overheating: Energy bleed (-23). 01198_ System corrupted: Component data lost. 01218_ ZGFRDO9ZTLFRWELXK& UANVP|S 01254_ System corrupted: Heat flow error (+231). 01293_ System corrupted: Matter fused (-7). 01332_ ,4AE|IRDSOL QELWPGNHWNO0 OKAUI35UAZQS6GG3 /HR34E02PJMNBLY 01421_ System corrupted: Heat flow error (+168). 01443_ System corrupted: Heat flow error (+102). 01460_ System corrupted: Component data lost. 01488_ System corrupted: Energy discharge (-33). 01522_ System corrupted: Matter fused (-5). 01547_ System corrupted: Heat flow error (+189). 01590_ System corrupted: Matter fused (-9). 01605_ System corrupted: Matter fused (-8). 01631_ The unstable cave ceiling collapses. 01631_ Crushed by falling debris. [Achievement: Back For More] Map ----- +----------------------------------------------------+ | #?# ######Y#####?? | | #?# # #? | | #?#t # **! """ #? | | = #?# # **! """ #? | | #?# # *! """ #? | | ############?#k # #? | | ?????????????# + #? | | ?????????????# # #? | | ????????????## #####+######## | | ???????###### #### # # | | ???????+ # """ # | | ???????# T + """ # | | ???????###### ### # """ # | | ??????????####+##### # # | | ??????????# # # """ # | | ??????????# + # """ # | | ??????????# =# + """ # | | ??????????# """ # # # | | ??????????# """"" # # "S # | | ??????????# """"" + # """ # | | ??????????# """"" ## # "" # | | ??????????# """ ## # # | | ??????????# ## ###"#### | | ??????????##+######## #### ##? | | ???????????# #?????## ######?? | | ????????####+######## ###@##?? | | ????????# ] #?# #####??? | | ????????#"" #?# ####???? | | ????????#"T """ #?# #??????? | | ????????#"" """ #?# #??????? | | ????????# """ #?# ##?????? | | ????????# #?# T#?????? | | ????????# #?# ##?????? | | ????????# #?# #??????? | | ?????#+######+####### ###????? | | #????? | | < #????? | | agg #????? | | ######+###########+######????? | | ?????????????????g???????????? | | ?????????????????????????????? | | ?????????????????????????????? | | ?????????????????????????????? | | ?????????????????????????????? | | ?????????????????????????????? | | ?????????????????????????????? | | ?????????????????????????????? | | ?????????????????????????????? | | ?????????????????????????????? | | ?????????????????????????????? | +----------------------------------------------------+ Best States ------------- Heat Dissipation 28 Energy Generation 10 Energy Capacity 250 Matter Stores 300 Matter Capacity 300 Sight Range 16 Terrain Scan Density 10 Base Temperature (-) 100 Evasion (%) 45 Item Schematics ----------------- Airjet | -9/Materials | Scanalyzed Arm. Wheel | -9/Materials | Scanalyzed Lgt. Assault Rifle | -9/Materials | Scanalyzed Robot Schematics ------------------ None Fabricated ------------ Nothing Alien Tech Used ----------------- None Achievements -------------- Back For More Challenges ------------ None Game ------ Seed AntigravThunderRegulator Manual? 0 Play Time 00:16:04 Cumulative 40.2 hours Start 2021.07.16 @ 14:08:32 End 2021.07.16 @ 14:21:01 Sessions 1 Manual Loads 0 Difficulty Rogue Special Mode None Game No. 50 Rogue 46 Adventurer 0 Explorer 4 Win Type - Total 0 Types 0/0/0/0/0/0/0/0/0 Lore% 18 Gallery% 29 Achievement% 25 Wizard Run 0 Options --------- ASCII 0 Keyboard 1 Movement Arrows Keybinds 0 Fullscreen 1 Font 24/Smallcaps Map View 113x50 Tactical HUD 1 Map Filters NONE Filters NONE Steam 1 RUN: 4da8d2dd-3815-4434-bee1-4a6b1ae81f87